fUST/lending_fUST_20240115
["ID","MTS","AMOUNT","RATE_DAILY","PERIOD"]
[311672826,1705307432135,-21.46844579,0.00026969,4]
[311672827,1705307432145,-155.0,0.00027,2]
[311672829,1705307432154,-479.7132969,0.0002802,2]
[311672830,1705307432165,-620.10808307,0.00028056,2]
[311672832,1705307432174,-166.132822,0.00028062,2]
[311672833,1705307432184,-2279.89261634,0.00028755,3]
[311672834,1705307432194,-427.47986556,0.00028755,3]
[311672835,1705307432205,-360.22651072,0.00028755,3]
[311672836,1705307432215,-1112.22182837,0.00028797,2]
[311672837,1705307432225,-155.0,0.00028989,2]
[311672838,1705307432235,-305.27027518,0.00029,2]
[311672839,1705307432245,-261.19258853,0.00029,2]
[311672840,1705307432255,-153.0,0.00029241,2]
[311672841,1705307432265,-153.0,0.00029241,2]
[311672842,1705307432276,-153.0,0.00029241,2]
[311672843,1705307432286,-153.0,0.00029241,2]
[311672844,1705307432295,-153.0,0.00029241,2]
[311672845,1705307432304,-309.4108809,0.00029315,2]
[311672846,1705307432314,-306.2959332,0.00029315,2]
[311672847,1705307432323,-153.2206058,0.00029315,2]
[311672848,1705307432333,-156.2309434,0.00029315,2]
[311672849,1705307432342,-203.0085679,0.00029315,2]
[311672850,1705307432351,-153.0,0.00029315,2]
[311672851,1705307432360,-198.8577961,0.00029315,2]
[311672852,1705307432369,-198.8577961,0.00029315,2]
[311672853,1705307432378,-153.0,0.00029315,2]
[311672854,1705307432388,-153.0,0.00029315,2]
[311672855,1705307432398,-153.0,0.00029315,2]
[311672856,1705307432407,-700.0,0.0002941,2]
[311672857,1705307432416,-3400.77667804,0.0002941,2]
[311672858,1705307432426,-160.66705656,0.0002941,2]
[311672859,1705307432435,-620.00540415,0.00029459,2]
[311672860,1705307432445,-507.44515137,0.0002968,3]
[311672861,1705307432454,-168.08126236,0.00029787,2]
[311672862,1705307432464,-523.08396244,0.00029787,2]
[311672863,1705307432474,-333.30396925,0.00029788,2]
[311672864,1705307432484,-504.55,0.00029788,2]
[311672865,1705307432493,-945.91706328,0.00029956,2]
[311672866,1705307432503,-1251.25826469,0.00029965,2]
[311672867,1705307432514,-155.28157978,0.00029965,2]
[311672868,1705307432525,-585.7792695,0.00029965,2]
[311672869,1705307432535,-155.02015262,0.00029966,2]
[311672870,1705307432545,-15888.77749284,0.00029967,2]
[311672871,1705307432556,-19564.7717483,0.00029968,3]
[311673189,1705308638475,-361.02080012,0.00023349,2]
[311673191,1705308638484,-687.07152181,0.00023349,2]
[311673193,1705308638494,-166.76500768,0.0002335,2]
[311673195,1705308638503,-154.98450155,0.0002335,4]
[311673197,1705308638513,-175.00244479,0.00023351,2]
[311673199,1705308638522,-554.6324073,0.00023351,2]
[311673201,1705308638531,-161.55132726,0.000235,2]
[311673203,1705308638541,-166.132822,0.00026948,2]
[311673205,1705308638550,-374.28858375,0.00027868,2]
[311673207,1705308638559,-155.0,0.00028967,2]
[311673209,1705308638569,-154.98450155,0.00029,2]
[311673211,1705308638579,-170.0388339,0.0002941,2]
[311673213,1705308638588,-2454.18896115,0.0002941,2]
[311673216,1705308638597,-859.02041673,0.00029411,2]
[311673218,1705308638607,-348.97614086,0.000295,30]
[311673220,1705308638616,-507.44515137,0.0002968,3]
[311673221,1705308638625,-205.46700987,0.00029867,2]
[311673223,1705308638634,-471.082915,0.00029877,2]
[311673225,1705308638643,-863.93009296,0.00029944,2]
[311673227,1705308638653,-155.44645526,0.00029944,2]
[311673230,1705308638663,-155.0,0.00029944,2]
[311673231,1705308638672,-246.10396651,0.00029944,2]
[311673233,1705308638681,-19431.0,0.00029945,3]
[311673235,1705308638690,-323.00558521,0.00029945,2]
[311673237,1705308638699,-1990.42773149,0.00029953,2]
[311673239,1705308638709,-191.10838986,0.00029953,2]
[311673242,1705308638719,-611.30969374,0.00029953,2]
[311673244,1705308638728,-155.41425937,0.00029953,2]
[311673246,1705308638737,-155.0,0.00029953,2]
[311673248,1705308638746,-155.20195616,0.00029954,2]
[311673250,1705308638755,-1738.04312491,0.00029954,2]
[311673252,1705308638764,-266.26101319,0.00029954,2]
[311673253,1705308638773,-162.79031221,0.00029954,2]
[311673255,1705308638783,-500.0,0.00029954,2]
[311673258,1705308638792,-465.11184829,0.00029954,2]
[311673259,1705308638801,-500.0,0.00029954,2]
[311673262,1705308638811,-500.0,0.00029954,2]
[311673264,1705308638820,-335.63472498,0.00029954,2]
[311673265,1705308638829,-500.0,0.00029954,2]
[311673267,1705308638838,-500.0,0.00029954,2]
[311673269,1705308638848,-500.0,0.00029954,2]
[311673271,1705308638858,-501.02652475,0.00029954,2]
[311673273,1705308638867,-9189.05,0.00029954,2]
[311673275,1705308638876,-500.0,0.00029954,2]
[311673277,1705308638886,-500.0,0.00029954,2]
[311673279,1705308638895,-500.0,0.00029954,2]
[311673281,1705308638904,-500.0,0.00029954,2]
[311673283,1705308638914,-359.68166785,0.00029954,2]
[311673285,1705308638923,-531.04050817,0.00029954,2]
[311673287,1705308638932,-23317.2,0.00029954,3]
[311673289,1705308638942,-488.22852689,0.00029954,2]
[311673290,1705308638951,-654.14,0.00029954,2]
[311673292,1705308638961,-155.0,0.00029955,2]
[311673294,1705308638971,-155.0,0.00029955,2]
[311673295,1705308638981,-155.0,0.00029955,2]
[311673297,1705308638990,-160.82569621,0.00029955,2]
[311673298,1705308638999,-13481.87,0.00029955,3]
[311673299,1705308639008,-2035.5021214,0.00029956,2]
[311673300,1705308639018,-500.0,0.00029963,2]
[311673301,1705308639027,-155.0309938,0.00029964,2]
[311673302,1705308639037,-1369.21,0.00029964,2]
[311673303,1705308639046,-500.0,0.00029964,2]
[311673304,1705308639055,-500.0,0.00029964,2]
[311673305,1705308639067,-619.09681012,0.00029964,2]
[311673306,1705308639077,-500.0,0.00029964,2]
[311673307,1705308639086,-500.0,0.00029964,2]
[311673308,1705308639095,-500.0,0.00029964,2]
[311673309,1705308639104,-919.74,0.00029964,2]
[311673310,1705308639113,-500.0,0.00029964,2]
[311673311,1705308639123,-1850.31,0.00029964,2]
[311673312,1705308639132,-500.0,0.00029964,2]
[311673313,1705308639141,-500.0,0.00029964,2]
[311673314,1705308639150,-500.0,0.00029964,2]
[311673315,1705308639160,-500.0,0.00029964,2]
[311673316,1705308639171,-1133.37,0.00029964,2]
[311673317,1705308639181,-500.0,0.00029964,2]
[311673318,1705308639190,-771.41,0.00029964,2]
[311673319,1705308639199,-4846.1,0.00029964,2]
[311673320,1705308639208,-5355.59,0.00029964,2]
[311673321,1705308639217,-500.3216455,0.00029964,2]
[311673322,1705308639226,-2667.31,0.00029964,2]
[311673323,1705308639235,-500.0,0.00029964,2]
[311673324,1705308639245,-562.74168545,0.00029965,2]
[311673325,1705308639254,-19835.34944112,0.00029965,2]
[311673326,1705308639263,-587.34193161,0.00029965,2]
[311673327,1705308639272,-1699.76750063,0.00029965,2]
[311673328,1705308639281,-19669.45887816,0.00029965,2]
[311673329,1705308639290,-500.0,0.00029965,2]
[311673330,1705308639299,-3591.0,0.00029965,2]
[311673331,1705308639308,-16473.44,0.00029965,2]
[311673332,1705308639317,-500.0,0.00029965,2]
[311673333,1705308639326,-500.0,0.00029965,2]
[311673334,1705308639336,-500.0,0.00029965,2]
[311673335,1705308639345,-500.0,0.00029965,2]
[311673336,1705308639355,-3057.86,0.00029965,2]
[311673337,1705308639365,-619.18,0.00029965,2]
[311673338,1705308639374,-155.02015262,0.00029966,2]
[311673339,1705308639384,-3753.87277896,0.00029966,2]
[311673340,1705308639393,-500.0,0.00029966,2]
[311673341,1705308639402,-618.16,0.00029966,2]
[311673342,1705308639412,-3730.18,0.00029966,2]
[311673343,1705308639421,-500.0,0.00029966,2]
[311673344,1705308639430,-706.4,0.00029966,2]
[311673345,1705308639440,-500.0,0.00029966,2]
[311673346,1705308639455,-1987.64,0.00029966,2]
[311673347,1705308639464,-619.03,0.00029966,2]
[311673348,1705308639475,-565.18204006,0.00029967,2]
[311673349,1705308639484,-357.82551127,0.00029967,2]
[311673350,1705308639494,-500.0,0.00029967,2]
[311673351,1705308639503,-500.0,0.00029967,2]
[311673352,1705308639512,-500.0,0.00029967,2]
[311673353,1705308639521,-626.62,0.00029967,2]
[311673354,1705308639532,-500.0,0.00029967,2]
[311673355,1705308639541,-500.0,0.00029967,2]
[311673356,1705308639550,-500.0,0.00029967,2]
[311673357,1705308639559,-500.0,0.00029967,2]
[311673358,1705308639569,-500.0,0.00029967,2]
[311673359,1705308639578,-500.0,0.00029967,2]
[311673360,1705308639587,-805.61,0.00029967,2]
[311673361,1705308639596,-599.68,0.00029967,2]
[311673362,1705308639606,-500.0,0.00029967,2]
[311673363,1705308639615,-500.0,0.00029967,2]
[311673364,1705308639624,-500.0,0.00029967,2]
[311673365,1705308639634,-500.0,0.00029967,2]
[311673366,1705308639643,-500.0,0.00029967,2]
[311673367,1705308639652,-500.0,0.00029967,2]
[311673368,1705308639663,-500.0,0.00029967,2]
[311673369,1705308639673,-603.93,0.00029967,2]
[311673370,1705308639682,-500.0,0.00029967,2]
[311673371,1705308639691,-593.88964786,0.00029967,2]
[311673372,1705308639701,-500.0,0.00029967,2]
[311673373,1705308639710,-500.0,0.00029967,2]
[311673374,1705308639719,-899.12,0.00029967,2]
[311673375,1705308639729,-500.0,0.00029967,2]
[311673376,1705308639738,-500.0,0.00029967,2]
[311673377,1705308639748,-500.0,0.00029967,2]
[311673378,1705308639758,-500.0,0.00029967,2]
[311673379,1705308639768,-500.0,0.00029967,2]
[311673380,1705308639777,-500.0,0.00029967,2]
[311673381,1705308639787,-503.55703203,0.00029967,2]
[311673382,1705308639796,-500.0,0.00029967,2]
[311673383,1705308639805,-505.76347654,0.00029967,2]
[311673384,1705308639814,-500.0,0.00029967,2]
[311673385,1705308639823,-526.91670753,0.00029967,2]
[311673386,1705308639832,-518.86247278,0.00029967,2]
[311673387,1705308639842,-500.0,0.00029967,2]
[311673388,1705308639852,-938.12005383,0.00029967,2]
[311673389,1705308639861,-500.0,0.00029967,2]
[311673390,1705308639871,-500.0,0.00029967,2]
[311673391,1705308639880,-500.0,0.00029967,2]
[311673392,1705308639889,-281.92227749,0.00029968,2]
[311673393,1705308639898,-261.19258853,0.00029968,2]
[311673394,1705308639907,-253.67809972,0.00029975,2]
[311673395,1705308639918,-400.22268597,0.00029976,2]
[311673396,1705308639927,-2742.41278082,0.00029977,2]
[311673397,1705308639936,-500.0,0.00029977,2]
[311673398,1705308639946,-500.0,0.00029977,2]
[311673399,1705308639955,-500.0,0.00029977,2]
[311673400,1705308639965,-500.0,0.00029977,2]
[311673401,1705308639974,-278.26569893,0.00029977,2]
[311673402,1705308639984,-500.0,0.00029977,2]
[311673403,1705308639993,-500.0,0.00029977,2]
[311673404,1705308640002,-501.08034467,0.00029977,2]
[311673405,1705308640012,-163.18093818,0.00029977,2]
[311673406,1705308640021,-500.0,0.00029977,2]
[311673407,1705308640030,-819.26,0.00029977,2]
[311673408,1705308640039,-500.0,0.00029977,2]
[311673409,1705308640049,-587.30134196,0.00029977,2]
[311673410,1705308640058,-500.0,0.00029977,2]
[311673411,1705308640068,-508.23488749,0.00029977,2]
[311673412,1705308640077,-500.0,0.00029977,2]
[311673413,1705308640166,-500.0,0.00029977,2]
[311673414,1705308640175,-500.0,0.00029977,2]
[311673415,1705308640184,-500.0,0.00029977,2]
[311673416,1705308640193,-500.0,0.00029977,2]
[311673417,1705308640202,-501.06750293,0.00029977,2]
[311673418,1705308640212,-500.0,0.00029977,2]
[311673419,1705308640221,-600.84545332,0.00029977,2]
[311673420,1705308640230,-500.0,0.00029977,2]
[311673421,1705308640239,-500.0,0.00029977,2]
[311673422,1705308640249,-500.0,0.00029977,2]
[311673423,1705308640269,-500.0,0.00029977,2]
[311673424,1705308640281,-542.08068923,0.00029977,2]
[311673425,1705308640291,-500.0,0.00029977,2]
[311673426,1705308640301,-500.0,0.00029977,2]
[311673427,1705308640311,-500.0,0.00029977,2]
[311673428,1705308640323,-500.0,0.00029977,2]
[311673429,1705308640332,-451.94693227,0.00029977,2]
[311673430,1705308640342,-641.96,0.00029978,2]
[311673431,1705308640352,-500.0,0.00029978,2]
[311673432,1705308640363,-1901.66,0.00029978,2]
[311673433,1705308640373,-1311.16650272,0.00029987,2]
[311673434,1705308640383,-500.0,0.00029988,2]
[311673435,1705308640393,-1200.0,0.0003,4]
[311673436,1705308640404,-154.9690062,0.0003,4]
[311673437,1705308640415,-1413.42859915,0.0003,2]
[311673438,1705308640425,-270.84411006,0.0003,30]
[311673439,1705308640436,-300.0,0.0003,14]
[311673440,1705308640446,-226.0,0.0003,2]
[311673441,1705308640456,-150.0,0.00030136,2]
[311673442,1705308640466,-500.0,0.00030136,2]
[311673443,1705308640477,-41798.8746468,0.00030137,2]
[311673444,1705308640487,-500.0,0.00030228,2]
[311673445,1705308640496,-500.0,0.00030228,2]
[311673446,1705308640507,-500.0,0.00030228,2]
[311673447,1705308640516,-9189.05,0.00030228,2]
[311673448,1705308640527,-500.0,0.00030228,2]
[311673449,1705308640537,-500.0,0.00030228,2]
[311673451,1705308640547,-500.0,0.00030228,2]
[311673452,1705308640557,-654.14,0.00030228,2]
[311673453,1705308640566,-1369.21,0.00030238,2]
[311673454,1705308640576,-500.0,0.00030238,2]
[311673455,1705308640585,-510.87281,0.00030238,2]
[311673456,1705308640595,-500.0,0.00030238,2]
[311673457,1705308640605,-500.0,0.00030238,2]
[311673458,1705308640614,-919.74,0.00030238,2]
[311673459,1705308640624,-500.0,0.00030238,2]
[311673460,1705308640633,-1850.31,0.00030238,2]
[311673461,1705308640643,-500.0,0.00030238,2]
[311673462,1705308640653,-500.0,0.00030238,2]
[311673463,1705308640662,-500.0,0.00030238,2]
[311673464,1705308640672,-1133.37,0.00030238,2]
[311673465,1705308640682,-360.84061127,0.00030238,2]
[311673466,1705308640691,-771.41,0.00030238,2]
[311673467,1705308640701,-4846.1,0.00030238,2]
[311673468,1705308640711,-5355.59,0.00030238,2]
[311673469,1705308640720,-2667.31,0.00030238,2]
[311673470,1705308640730,-500.0,0.00030238,2]
[311673471,1705308640739,-500.0,0.00030239,2]
[311673472,1705308640749,-3591.0,0.00030239,2]
[311673473,1705308640758,-16473.44,0.00030239,2]
[311673474,1705308640768,-500.0,0.00030239,2]
[311673475,1705308640777,-500.0,0.00030239,2]
[311673476,1705308640787,-3057.86,0.00030239,2]
[311673477,1705308640797,-619.18,0.00030239,2]
[311673478,1705308640806,-500.0,0.0003024,2]
[311673479,1705308640815,-618.16,0.0003024,2]
[311673480,1705308640825,-3730.18,0.0003024,2]
[311673481,1705308640834,-500.0,0.0003024,2]
[311673482,1705308640844,-706.4,0.0003024,2]
[311673483,1705308640854,-500.0,0.0003024,2]
[311673484,1705308640864,-1987.64,0.0003024,2]
[311673485,1705308640874,-619.03,0.0003024,2]
[311673486,1705308640883,-500.0,0.00030241,2]
[311673487,1705308640893,-500.0,0.00030241,2]
[311673488,1705308640902,-150.0,0.00030241,2]
[311673489,1705308640912,-626.62,0.00030241,2]
[311673490,1705308640921,-500.0,0.00030241,2]
[311673491,1705308640930,-164.48532718,0.00030241,2]
[311673492,1705308640939,-500.0,0.00030241,2]
[311673493,1705308640949,-500.0,0.00030241,2]
[311673494,1705308640958,-805.61,0.00030241,2]
[311673495,1705308640968,-599.68,0.00030241,2]
[311673496,1705308640977,-500.0,0.00030241,2]
[311673497,1705308640988,-500.0,0.00030241,2]
[311673498,1705308640998,-500.0,0.00030241,2]
[311673499,1705308641007,-500.0,0.00030241,2]
[311673500,1705308641017,-500.0,0.00030241,2]
[311673501,1705308641026,-603.93,0.00030241,2]
[311673502,1705308641036,-500.0,0.00030241,2]
[311673503,1705308641045,-500.0,0.00030241,2]
[311673504,1705308641056,-899.12,0.00030241,2]
[311673505,1705308641066,-500.0,0.00030241,2]
[311673506,1705308641076,-500.0,0.00030241,2]
[311673507,1705308641086,-495.97149362,0.00030241,2]
[311673508,1705308641095,-500.0,0.00030241,2]
[311673509,1705308641105,-500.91038738,0.00030241,2]
[311673510,1705308641114,-500.0,0.00030241,2]
[311673511,1705308641124,-500.0,0.00030241,2]
[311673512,1705308641133,-500.0,0.00030251,2]
[311673513,1705308641143,-500.0,0.00030251,2]
[311673514,1705308641152,-500.0,0.00030251,2]
[311673516,1705308641162,-819.26,0.00030251,2]
[311673517,1705308641172,-500.0,0.00030251,2]
[311673518,1705308641181,-500.0,0.00030251,2]
[311673519,1705308641191,-500.0,0.00030251,2]
[311673520,1705308641200,-500.0,0.00030251,2]
[311673521,1705308641210,-500.0,0.00030251,2]
[311673523,1705308641219,-500.0,0.00030251,2]
[311673524,1705308641229,-500.0,0.00030251,2]
[311673526,1705308641239,-500.0,0.00030251,2]
[311673527,1705308641249,-500.0,0.00030251,2]
[311673528,1705308641259,-641.96,0.00030252,2]
[311673529,1705308641269,-500.0,0.00030252,2]
[311673531,1705308641278,-1901.66,0.00030252,2]
[311673533,1705308641288,-154.91687259,0.00030316,7]
[311673534,1705308641298,-155.0,0.00030337,2]
[311673536,1705308641308,-153.85852713,0.00030457,7]
[311673537,1705308641317,-500.0,0.00030502,2]
[311673538,1705308641327,-500.0,0.00030502,2]
[311673539,1705308641337,-263.87300385,0.00030502,2]
[311673540,1705308641346,-9189.05,0.00030502,2]
[311673542,1705308641356,-500.0,0.00030502,2]
[311673544,1705308641366,-500.0,0.00030502,2]
[311673545,1705308641375,-500.0,0.00030502,2]
[311673546,1705308641384,-654.14,0.00030502,2]
[311673547,1705308641395,-1369.21,0.00030512,2]
[311673548,1705308641404,-500.0,0.00030512,2]
[311673549,1705308641414,-500.0,0.00030512,2]
[311673550,1705308641423,-500.0,0.00030512,2]
[311673551,1705308641432,-919.74,0.00030512,2]
[311673552,1705308641445,-500.0,0.00030512,2]
[311673553,1705308641454,-1850.31,0.00030512,2]
[311673554,1705308641464,-500.0,0.00030512,2]
[311673555,1705308641474,-500.0,0.00030512,2]
[311673556,1705308641485,-500.0,0.00030512,2]
[311673557,1705308641494,-1133.37,0.00030512,2]
[311673558,1705308641503,-771.41,0.00030512,2]
[311673559,1705308641513,-4846.1,0.00030512,2]
[311673560,1705308641525,-5355.59,0.00030512,2]
[311673561,1705308641535,-2667.31,0.00030512,2]
[311673562,1705308641546,-500.0,0.00030513,2]
[311673563,1705308641555,-3591.0,0.00030513,2]
[311673564,1705308641565,-16473.44,0.00030513,2]
[311673565,1705308641575,-500.0,0.00030513,2]
[311673566,1705308641585,-500.0,0.00030513,2]
[311673567,1705308641595,-3057.86,0.00030513,2]
[311673568,1705308641605,-619.18,0.00030513,2]
[311673569,1705308641616,-500.0,0.00030514,2]
[311673570,1705308641626,-618.16,0.00030514,2]
[311673571,1705308641636,-3730.18,0.00030514,2]
[311673572,1705308641646,-500.0,0.00030514,2]
[311673573,1705308641655,-706.4,0.00030514,2]
[311673574,1705308641666,-500.0,0.00030514,2]
[311673575,1705308641675,-1987.64,0.00030514,2]
[311673576,1705308641684,-619.03,0.00030514,2]
[311673577,1705308641693,-500.0,0.00030515,2]
[311673578,1705308641703,-150.87135062,0.00030515,2]
[311673579,1705308641712,-626.62,0.00030515,2]
[311673580,1705308641721,-500.0,0.00030515,2]
[311673581,1705308641731,-500.0,0.00030515,2]
[311673582,1705308641740,-500.0,0.00030515,2]
[311673583,1705308641750,-805.61,0.00030515,2]
[311673584,1705308641759,-599.68,0.00030515,2]
[311673585,1705308641769,-500.0,0.00030515,2]
[311673586,1705308641778,-500.0,0.00030515,2]
[311673587,1705308641788,-500.0,0.00030515,2]
[311673588,1705308641797,-500.0,0.00030515,2]
[311673589,1705308641807,-603.93,0.00030515,2]
[311673590,1705308641817,-500.0,0.00030515,2]
[311673591,1705308641827,-509.92698359,0.00030515,2]
[311673592,1705308641836,-899.12,0.00030515,2]
[311673593,1705308641845,-500.0,0.00030515,2]
[311673594,1705308641855,-500.0,0.00030515,2]
[311673595,1705308641864,-500.0,0.00030515,2]
[311673596,1705308641873,-500.0,0.00030515,2]
[311673597,1705308641883,-500.0,0.00030525,2]
[311673598,1705308641892,-500.0,0.00030525,2]
[311673599,1705308641902,-500.0,0.00030525,2]
[311673600,1705308641911,-500.0,0.00030525,2]
[311673601,1705308641922,-819.26,0.00030525,2]
[311673602,1705308641931,-500.0,0.00030525,2]
[311673603,1705308641941,-500.0,0.00030525,2]
[311673604,1705308641950,-500.0,0.00030525,2]
[311673605,1705308641960,-500.0,0.00030525,2]
[311673606,1705308641969,-500.0,0.00030525,2]
[311673607,1705308641979,-500.0,0.00030525,2]
[311673608,1705308641988,-500.0,0.00030525,2]
[311673609,1705308641998,-500.0,0.00030525,2]
[311673610,1705308642007,-500.0,0.00030525,2]
[311673611,1705308642017,-641.96,0.00030526,2]
[311673612,1705308642105,-1901.66,0.00030526,2]
[311673613,1705308642114,-150.59929713,0.00030624,7]
[311673614,1705308642124,-150.5,0.0003066,30]
[311673615,1705308642133,-153.85852713,0.00030665,7]
[311673616,1705308642143,-150.5,0.0003067,30]
[311673617,1705308642152,-707.0,0.0003067,30]
[311673618,1705308642162,-150.5,0.0003068,30]
[311673619,1705308642172,-241.27,0.0003068,30]
[311673620,1705308642181,-707.0,0.0003068,30]
[311673621,1705308642190,-707.0,0.0003069,30]
[311673622,1705308642200,-535.0,0.0003075,30]
[311673623,1705308642209,-535.0,0.0003076,30]
[311673624,1705308642219,-535.0,0.0003077,30]
[311673625,1705308642228,-500.0,0.00030776,2]
[311673626,1705308642237,-9189.05,0.00030776,2]
[311673627,1705308642247,-394.38837324,0.00030776,2]
[311673628,1705308642385,-105.61162676,0.00030776,2]
[311673629,1705308642404,-500.0,0.00030776,2]
[311673630,1705308642415,-654.14,0.00030776,2]
[311673631,1705308642425,-858.38383043,0.00030786,2]
[311673824,1705309832539,-1783.67863487,0.00022078,2]
[311673825,1705309832562,-1957.35589459,0.00022078,2]
[311673826,1705309832571,-400.35198,0.00022079,2]
[311673827,1705309832580,-191.16884209,0.00022079,2]
[311673828,1705309832589,-155.0,0.00022079,4]
[311673829,1705309832598,-155.0,0.0002208,2]
[311673830,1705309832608,-2036.50780426,0.0002208,2]
[311673831,1705309832617,-155.0,0.00022081,2]
[311673832,1705309832626,-159.80511839,0.00022087,2]
[311673833,1705309832635,-1784.0,0.000222,2]
[311673834,1705309832644,-2928.5969178,0.0002302,2]
[311673835,1705309832653,-521.00009772,0.00026354,2]
[311673836,1705309832664,-24900.0,0.00026356,2]
[311673837,1705309832673,-150.16,0.00027696,2]
[311673838,1705309832682,-155.0,0.00027696,2]
[311673839,1705309832691,-160.82569621,0.00027696,2]
[311673840,1705309832703,-155.0,0.00027696,2]
[311673841,1705309832712,-155.0309938,0.00027697,2]
[311673842,1705309832723,-5956.47000547,0.00027699,2]
[311673843,1705309832732,-155.0,0.00027799,2]
[311673844,1705309832742,-249.5257225,0.00028413,2]
[311673845,1705309832750,-312.36705392,0.00028749,2]
[311673846,1705309832760,-155.44645526,0.00028756,2]
[311673847,1705309832769,-323.00558521,0.00028756,2]
[311673848,1705309832778,-155.0,0.00028756,2]
[311673849,1705309832787,-246.10396651,0.00028757,2]
[311673850,1705309832796,-863.93009296,0.00028757,2]
[311673851,1705309832805,-21303.75,0.00028757,3]
[311673852,1705309832814,-266.26101319,0.00028765,2]
[311673853,1705309832823,-155.41425937,0.00028766,2]
[311673854,1705309832832,-1990.42773149,0.00028767,2]
[311673855,1705309832842,-25564.5,0.00028767,3]
[311673856,1705309832851,-155.20195616,0.00028776,2]
[311673857,1705309832860,-1738.04312491,0.00028776,2]
[311673858,1705309832869,-162.79031221,0.00028776,2]
[311673859,1705309832879,-611.30969374,0.00028776,2]
[311673860,1705309832888,-16473.44,0.00028777,2]
[311673861,1705309832897,-9381.65,0.00028777,2]
[311673862,1705309832906,-500.0,0.00028777,2]
[311673863,1705309832918,-500.0,0.00028777,2]
[311673864,1705309832927,-3057.86,0.00028777,2]
[311673865,1705309832937,-619.18,0.00028777,2]
[311673866,1705309832946,-9144.73292538,0.00028778,2]
[311673901,1705309838657,-3468.59352094,0.00028777,2]
[311673903,1705309838667,-30525.96595686,0.00028778,2]
[311673905,1705309838679,-626.88,0.00028786,2]
[311673907,1705309838689,-500.0,0.00028786,2]
[311673909,1705309838698,-3591.0,0.00028786,2]
[311673911,1705309838707,-500.0,0.00028786,2]
[311673913,1705309838717,-500.0,0.00028786,2]
[311673915,1705309838726,-587.34193161,0.00028787,2]
[311673917,1705309838736,-562.74168545,0.00028787,2]
[311673919,1705309838744,-19669.45887816,0.00028787,2]
[311673921,1705309838754,-1699.76750063,0.00028787,2]
[311673923,1705309838763,-2742.41278082,0.00028788,2]
[311673925,1705309838773,-500.0,0.00028788,2]
[311673927,1705309838782,-500.0,0.00028788,2]
[311673929,1705309838792,-619.09681012,0.00028788,2]
[311673931,1705309838801,-500.0,0.00028788,2]
[311673933,1705309838811,-500.0,0.00028788,2]
[311673935,1705309838823,-500.0,0.00028788,2]
[311673937,1705309838832,-500.0,0.00028788,2]
[311673939,1705309838842,-500.0,0.00028788,2]
[311673941,1705309838851,-500.0,0.00028788,2]
[311673942,1705309838861,-500.0,0.00028788,2]
[311673943,1705309838870,-500.0,0.00028788,2]
[311673945,1705309838879,-1850.31,0.00028788,2]
[311673947,1705309838888,-500.0,0.00028788,2]
[311673948,1705309838898,-500.0,0.00028788,2]
[311673949,1705309838907,-500.0,0.00028788,2]
[311673950,1705309838916,-500.0,0.00028788,2]
[311673951,1705309838927,-1133.37,0.00028788,2]
[311673952,1705309838936,-500.0,0.00028788,2]
[311673953,1705309838946,-500.3216455,0.00028788,2]
[311673954,1705309838957,-771.41,0.00028788,2]